Cogmind - Beta 13 @@@ ROGUE MODE // 2024.03.08 @ 00:41:25 Player: monistgf Result: Self-destructed Performance ------------- Evolutions (6) 3000 Regions Visited (16) 3200 Robots Destroyed (149) 745 Value Destroyed (5463) 5463 Prototype IDs (11) 220 Alien Tech Used (0) 0 Bonus (2400) 2400 TOTAL SCORE: 15028 Bonus ------- High Alert Combat Kills 296 Follower Combat Kills 2104 Cogmind --------- Core Integrity 684/1150 Matter 295/300 Energy 100/100 System Corruption 0% Temperature Cool (0) Movement Walking (105) Location -4/Upper Caves Parts ------- > --- POWER (2) -------- (None) > --- PROPULSION (4) --- Flexi-carbon Leg Enhanced Flexi-carbon Leg Advanced VSS Leg Advanced VSS Leg > --- UTILITY (10) ----- Advanced Heat Sink Large Storage Unit Improved Weapon Shielding Hacking Suite Improved System Shield Improved Dynamic Insulation System Improved System Guard > --- WEAPON (3) ------- Makeshift Spear Makeshift Spear Kinetic Spear > --- INVENTORY (15) --- Gravmag Array Antigrav System Antigrav System Antigrav System Antigrav System Linear Gravjet High-capacity Matter Pod (200) Advanced Sensor Array Hardcell Cannon Heavy Rocket Launcher Power Sword Makeshift Spear Peak State ------------ > --- POWER ------------ Micro Fission Core Antimatter Reactor > --- PROPULSION ------- Flexi-carbon Leg Enhanced Flexi-carbon Leg Enhanced Flexi-carbon Leg Myomer Leg > --- UTILITY ---------- Advanced Thermal Generator Advanced Heat Sink Large Storage Unit Improved Weapon Shielding Hardened Medium Armor Plating Layered Light Armor Plating Centrium Medium Armor Plating Improved System Shield Improved Dynamic Insulation System Improved System Guard > --- WEAPON ----------- Phasing Sabre Makeshift Spear Kinetic Spear > --- INVENTORY -------- Micro Fission Core Flexi-carbon Leg Flexi-carbon Leg Flexi-carbon Leg Flexi-carbon Leg Antigrav System Antigrav System Antigrav System High-capacity Matter Pod Advanced Sensor Array Mass Driver Hardcell Cannon Heavy Rocket Launcher Makeshift Spear Makeshift Spear [Rating: 113] Favorites ----------- Power Fission Core Engine Improved Deuterium Engine Power Core Fission Core Reactor Antimatter Reactor Propulsion Flexi-carbon Leg Treads Light Treads Leg Flexi-carbon Leg Wheel Armored Huge Wheel Hover Unit Gravmag System Utility Actuator Array Device Actuator Array Storage Large Storage Unit Processor Melee Analysis Suite Hackware Improved System Shield Protection Centrium Medium Armor Plating Weapon Phasing Sabre Energy Gun Medium Laser Ballistic Gun Heavy Assault Rifle Ballistic Cannon Gauss Cannon Launcher Grenade Launcher Impact Weapon Powered Hammer Slashing Weapon Phasing Sabre Piercing Weapon Heavy Pick Build | -11 -10 -9 -8 -7 -7 -7 -7 -6 -6 -6 -6 -6 -6 -5 -4 -4 ------- Run | Yrd Mat Mat Mat Fac Low Low Zio Pro Fac Ext Cet Arc Hub Fac Fac Upp Slots Evolved 12 | . . 2 2 2 . . . . 2 . . . . 2 2 . Power 1 | . . . . . . . . . 1 . . . . . . . Propulsion 2 | . . 1 1 . . . . . . . . . . . . . Utility 8 | . . . 1 2 . . . . 1 . . . . 2 2 . Weapon 1 | . . 1 . . . . . . . . . . . . . . Parts Attached 237 | . 7 26 20 52 3 3 1 4 8 21 9 4 18 25 34 2 Power 35 | . 1 2 2 4 . . . 1 3 5 2 3 3 3 6 . Engine 12 | . 1 2 1 3 . . . . 2 1 . . 1 1 . . Core 20 | . . . 1 1 . . . 1 1 4 1 3 1 2 5 . Reactor 3 | . . . . . . . . . . . 1 . 1 . 1 . Propulsion 76 | . 2 7 7 22 1 . . . 3 6 4 1 7 3 11 2 Treads 2 | . . 2 . . . . . . . . . . . . . . Leg 68 | . 2 5 7 16 1 . . . 3 6 4 1 7 3 11 2 Wheel 1 | . . . . 1 . . . . . . . . . . . . Hover 5 | . . . . 5 . . . . . . . . . . . . Flight . | . . . . . . . . . . . . . . . . . Utility 75 | . . 4 5 18 1 1 1 3 2 2 3 . 6 16 13 . Device 39 | . . 1 5 8 . . . 2 2 1 1 . 4 12 3 . Storage 3 | . . 2 . . . . . . . . . . 1 . . . Processor 7 | . . 1 . 3 . . . . . . 1 . . . 2 . Hackware 4 | . . . . . . . . . . . . . . 2 2 . Protection 22 | . . . . 7 1 1 1 1 . 1 1 . 1 2 6 . Artifact . | . . . . . . . . . . . . . . . . . Weapon 51 | . 4 13 6 8 1 2 . . . 8 . . 2 3 4 . Energy Gun 2 | . 1 1 . . . . . . . . . . . . . . Energy Cannon . | . . . . . . . . . . . . . . . . . Ballistic Gun 12 | . 2 10 . . . . . . . . . . . . . . Ballistic Cannon 5 | . . . . . . . . . . 3 . . 1 . 1 . Launcher 6 | . 1 1 2 2 . . . . . . . . . . . . Special Weapon . | . . . . . . . . . . . . . . . . . Impact Weapon 1 | . . . . 1 . . . . . . . . . . . . Slashing Weapon 16 | . . 1 4 5 . . . . . 3 . . 1 2 . . Piercing Weapon 9 | . . . . . 1 2 . . . 2 . . . 1 3 . Special Melee Weapon . | . . . . . . . . . . . . . . . . . Unidentified Prototypes 4 | . . . . 1 . . . . . . 2 . . 1 . . Parts Lost 74 | . . 2 1 24 . . . 2 3 1 . . 11 7 16 7 Power 14 | . . 1 . 2 . . . 1 2 . . . 2 1 3 2 Propulsion 28 | . . 1 1 12 . . . . 1 1 . . 5 . 5 2 Utility 26 | . . . . 7 . . . 1 . . . . 4 5 6 3 Weapon 6 | . . . . 3 . . . . . . . . . 1 2 . Highest Loss Streak 5 | . . 1 1 5 . . . 2 2 1 . . 4 5 4 4 To Critical Strikes 2 | . . . . 1 . . . . . 1 . . . . . . Average Slot Usage (%) 95 | . 85 96 99 97 92 91 92 91 86 99 100 100 98 95 92 85 Engine 3 | . 14 11 8 2 7 7 7 3 2 1 . . . . . . Core 4 | . . . . 4 . . . 3 5 11 13 13 12 4 5 5 Reactor 1 | . . . . . . . . . . . . . . 5 4 1 Leg 23 | . 28 27 36 25 15 15 15 15 13 24 26 26 25 23 20 20 Wheel 1 | . . . . . 7 7 7 7 6 . . . . . . . Device 15 | . . 4 17 12 15 15 15 15 18 20 13 13 22 21 16 10 Storage 6 | . 14 11 9 7 7 7 7 7 6 6 6 6 6 5 5 5 Processor 5 | . . 4 . 9 7 7 7 7 6 6 12 13 3 . 3 5 Hackware 1 | . . . . . . . . . . . . . . 4 5 10 Protection 6 | . . . . 5 7 7 7 6 6 6 6 6 6 8 13 10 Ballistic Gun 2 | . 18 31 . . . . . . . . . . . . . . Impact Weapon 1 | . . . . 5 3 . . . . . . . . . . . Slashing Weapon 9 | . . . 26 16 15 13 . . . 8 13 13 12 8 4 . Piercing Weapon 7 | . . . . . 3 8 23 23 20 10 6 6 6 7 10 15 Naked Turns . | . . . . . . . . . . . . . . . . . Heaviest Build 85 | 13 14 37 41 55 52 52 51 49 50 70 74 72 75 80 85 62 Greatest Support 104 | 20 20 30 47 60 28 28 28 28 28 70 83 83 96 91 104 84 Greatest Overweight (x) 2 | . 1 2 . 2 1 1 1 1 1 1 1 . . . . . Average Overweight (x) . | . . . . . 1 1 1 1 1 . . . . . . . Largest Inventory Capacity 15 | . 8 15 15 15 15 15 15 15 15 15 15 15 15 15 15 15 Average Capacity 14 | . 8 9 15 15 15 15 15 15 15 15 15 15 15 15 15 15 Most Carried 15 | . 8 15 15 15 15 15 15 15 15 15 15 15 15 15 15 15 Average Carried 13 | . 7 8 14 13 14 14 14 14 14 14 14 14 14 14 13 14 Final Capacity 15 | 8 8 15 15 15 15 15 15 15 15 15 15 15 15 15 15 15 Final Carried 15 | 6 8 15 15 15 15 15 15 13 15 15 15 15 15 14 15 13 Class Distribution -------------------- 50% | Scavenger-Gladiator 25% | Gladiator 10% | Scavenger-Mutant 3% | Commander-Gladiator 3% | Gunner 3% | Mutant Dominant Class ---------------- Mutant | -10/Materials Gunner | -9/Materials Scavenger-Gladiator | -8/Materials Scavenger-Gladiator | -7/Factory Gladiator | -7/Lower Caves Gladiator | -7/Lower Caves Gladiator | -7/Zion Gladiator | -6/Proximity Caves Gladiator | -6/Factory Scavenger-Gladiator | -6/Extension Scavenger-Gladiator | -6/Cetus Scavenger-Gladiator | -6/Archives Scavenger-Gladiator | -6/Hub_04(d) Scavenger-Gladiator | -5/Factory Scavenger-Mutant | -4/Factory Scavenger-Mutant | -4/Upper Caves Resources | -11 -10 -9 -8 -7 -7 -7 -7 -6 -6 -6 -6 -6 -6 -5 -4 -4 ----------- Run | Yrd Mat Mat Mat Fac Low Low Zio Pro Fac Ext Cet Arc Hub Fac Fac Upp Matter Collected 3295 | 200 44 571 562 491 39 . 55 40 70 295 90 30 162 215 421 10 Remotely . | . . . . . . . . . . . . . . . . . Salvage Created 6514 | . 224 687 832 1338 . . . 73 468 346 126 184 302 609 1217 108 Parts 368 | . 14 59 53 74 . . . 5 26 14 4 12 10 30 63 4 Haulers Intercepted 3 | . 1 . . 1 . . . . . . . . 1 . . . Recyclers Shooed . | . . . . . . . . . . . . . . . . . Parts Field Recycled . | . . . . . . . . . . . . . . . . . Retrieved Matter . | . . . . . . . . . . . . . . . . . Parts Self-Destructed 22 | . . . . . 4 1 . 12 . . . . . . . 5 Prevented . | . . . . . . . . . . . . . . . . . Kills | -11 -10 -9 -8 -7 -7 -7 -7 -6 -6 -6 -6 -6 -6 -5 -4 -4 ------- Run | Yrd Mat Mat Mat Fac Low Low Zio Pro Fac Ext Cet Arc Hub Fac Fac Upp Combat Hostiles Destroyed 116 | . 7 21 19 23 . . . 3 3 4 2 1 3 10 19 1 Melee 79 | . . . 12 21 . . . 3 3 4 2 1 3 10 19 1 Guns 22 | . 4 18 . . . . . . . . . . . . . . AOE 15 | . 3 3 7 2 . . . . . . . . . . . . Classes Destroyed 15 | . 3 2 5 4 . . . . . . 1 . . . . . Worker 8 | . . . 2 1 . . . . 2 . . . 1 . 2 . Builder 4 | . . . 2 . . . . . 2 . . . . . . . Tunneler 2 | . . . . 1 . . . . 1 . . . . . . . Hauler 3 | . 1 . . 1 . . . . . . . . 1 . . . Recycler 7 | . . . 2 2 . . . . 1 1 . . . . 1 . Operator 4 | . . . . 1 . . . . . . . 3 . . . . Watcher 5 | . . 1 2 1 . . . . 1 . . . . . . . Swarmer 32 | . 3 7 8 7 . . . 3 . . . . . . 4 . Grunt 42 | . 4 9 6 5 . . . . 1 2 1 . 1 7 6 . Brawler 1 | . . . 1 . . . . . . . . . . . . . Duelist 1 | . . . . . . . . . . . 1 . . . . . Sentry 20 | . . 5 2 7 . . . . . 1 . 1 1 1 2 . Specialist 2 | . . . 2 . . . . . . . . . . . . . Hunter 5 | . . . . 1 . . . . 2 1 . . 1 . . . Programmer 13 | . . . . 3 . . . . . . . . . 2 7 1 Packrat 1 | . . . . . . . . . . . . . . . . 1 Best Kill Streak 8 | . 4 4 8 5 . . . 2 5 2 1 3 1 3 6 1 Combat Bots Only 8 | . 3 4 8 4 . . . 2 2 1 1 1 1 3 6 1 Max Kills in Single Turn 4 | . 2 2 4 2 . . . 1 1 1 1 1 1 1 1 1 Gunslinging 1 | . . 1 . . . . . . . . . . . . . . Exploded 2 | . 1 2 2 1 . . . . . . . . . . . . Melee 1 | . . . 1 1 . . . 1 1 1 1 1 1 1 1 1 Uniques/NPCs Destroyed . | . . . . . . . . . . . . . . . . . Combat | -11 -10 -9 -8 -7 -7 -7 -7 -6 -6 -6 -6 -6 -6 -5 -4 -4 -------- Run | Yrd Mat Mat Mat Fac Low Low Zio Pro Fac Ext Cet Arc Hub Fac Fac Upp Hostile Shots Fired 1211 | . 40 74 71 414 . . . 65 33 24 7 23 168 68 166 58 Missed 394 | . 13 20 26 147 . . . 20 8 10 3 10 56 17 48 16 Damage Taken 12394 | . 265 574 671 2767 . . . 717 441 188 257 312 1697 1007 2571 927 Core 1935 | . 65 28 152 424 . . . 135 95 24 59 122 200 165 320 146 Absorbed by Shields 89 | . . . . . . . . . . . 89 . . . . . Redirected to Shielding 260 | . . . . . . . . 71 . . . . . . 69 120 Regen/Repaired (Parts) 15 | . . . . . . . 15 . . . . . . . . . Core Remaining (%) 69 | 100 74 93 72 . . . . 20 . . . . 41 83 . . Volleys Fired 107 | . 19 37 11 4 . . . . . 15 . . 2 . 19 . Largest 3 | . 2 3 1 1 . . . . . 1 . . 1 . 1 . Hottest 80 | . 70 80 30 30 . . . . . 48 . . 48 . 65 . Shots Fired 191 | . 35 105 11 4 . . . . . 15 . . 2 . 19 . Gun 134 | . 32 102 . . . . . . . . . . . . . . Cannon 36 | . . . . . . . . . . 15 . . 2 . 19 . Launcher 21 | . 3 3 11 4 . . . . . . . . . . . . Special . | . . . . . . . . . . . . . . . . . Kinetic 158 | . 24 98 . . . . . . . 15 . . 2 . 19 . Thermal 8 | . 8 . . . . . . . . . . . . . . . Explosive 21 | . 3 3 11 4 . . . . . . . . . . . . Electromagnetic 4 | . . 4 . . . . . . . . . . . . . . Robot Hit Streak 10 | . 7 10 5 1 . . . . . . . . . . . . Robot Miss Streak 6 | . 6 2 2 1 . . . . . 1 . . . . . . Penetration Max . | . . . . . . . . . . . . . . . . . Secondary Targets 8 | . 3 5 . . . . . . . . . . . . . . Max Gunslinging Chain 1 | . 1 1 . . . . . . . . . . . . . . Shots Hit Robots 421 | . 14 68 36 98 . 4 . 11 21 14 3 12 18 42 70 10 Core Hits 217 | . 14 33 43 42 . 1 . 3 12 6 2 5 6 19 30 1 Critical Kills 2 | . 1 1 . . . . . . . . . . . . . . Critical Parts Destroyed 3 | . . 1 . 2 . . . . . . . . . . . . Critical Strikes 32 | . 1 2 4 7 . 1 . 1 2 2 . 1 3 3 4 1 Destroy 3 | . 1 2 . . . . . . . . . . . . . . Smash 2 | . . . . 2 . . . . . . . . . . . . Sever 17 | . . . 4 5 . . . . . 1 . 1 3 3 . . Impale 10 | . . . . . . 1 . 1 2 1 . . . . 4 1 Melee Attacks 557 | . . . 46 123 . 4 2 21 32 78 4 15 38 73 101 20 Impact 17 | . . . . 17 . . . . . . . . . . . . Slashing 291 | . . . 46 106 . 1 . . . 45 3 11 31 38 10 . Piercing 249 | . . . . . . 3 2 21 32 33 1 4 7 35 91 20 Sneak Attacks 25 | . . . . 4 . . . . 6 3 . 6 2 . 3 1 Combat Hostiles 1 | . . . . 1 . . . . . . . . . . . . Follow-up Attacks 117 | . . . 8 35 . 1 . 6 9 4 . 4 7 18 21 4 Damage Inflicted 15494 | . 357 1143 1731 3844 . 132 . 364 836 590 124 849 725 1607 2790 402 Guns 1076 | . 135 941 . . . . . . . . . . . . . . Cannons . | . . . . . . . . . . . . . . . . . Explosions 1549 | . 222 202 833 292 . . . . . . . . . . . . Melee 12869 | . . . 898 3552 . 132 . 364 836 590 124 849 725 1607 2790 402 Ramming . | . . . . . . . . . . . . . . . . . Kinetic 1028 | . 110 918 . . . . . . . . . . . . . . Thermal 25 | . 25 . . . . . . . . . . . . . . . Explosive 1549 | . 222 202 833 292 . . . . . . . . . . . . Electromagnetic 23 | . . 23 . . . . . . . . . . . . . . Impact 406 | . . . . 406 . . . . . . . . . . . . Slashing 7035 | . . . 898 3146 . 32 . . . 281 124 691 635 931 297 . Piercing 5428 | . . . . . . 100 . 364 836 309 . 158 90 676 2493 402 Highest Corruption 5 | . . . . 4 1 1 1 . . . . . . 5 4 . Average Corruption 2 | . . . . 2 1 1 1 . . . . . . 4 1 . Corruption Purged 3 | . . . . 3 . . . . . . . . . . . . Corruption Blocked . | . . . . . . . . . . . . . . . . . Effects 31 | . . . . 17 3 3 1 . . . . . . 4 3 . Message Errors 4 | . . . . 4 . . . . . . . . . . . . Matter Fused 9 | . . . . 3 1 1 1 . . . . . . 1 2 . Heat Flow Errors 5 | . . . . 3 1 1 . . . . . . . . . . Energy Discharges 7 | . . . . 4 . . . . . . . . . 3 . . Parts Fused 1 | . . . . 1 . . . . . . . . . . . . Data Loss (minor) 4 | . . . . 2 1 . . . . . . . . . 1 . Data Loss (major) 1 | . . . . . . 1 . . . . . . . . . . Overload Shots . | . . . . . . . . . . . . . . . . . Overflow Damage 986 | . . . 36 242 . 34 . 6 15 35 . 322 38 39 98 121 Projectiles . | . . . . . . . . . . . . . . . . . Explosions 36 | . . . 36 . . . . . . . . . . . . . Melee 950 | . . . . 242 . 34 . 6 15 35 . 322 38 39 98 121 Knockbacks . | . . . . . . . . . . . . . . . . . Impact . | . . . . . . . . . . . . . . . . . Kinetic . | . . . . . . . . . . . . . . . . . Secondary . | . . . . . . . . . . . . . . . . . Self-Inflicted Damage 72 | . . . 32 40 . . . . . . . . . . . . Shots 2 | . . . 1 1 . . . . . . . . . . . . Rammed . | . . . . . . . . . . . . . . . . . Targets Rammed . | . . . . . . . . . . . . . . . . . Kicked . | . . . . . . . . . . . . . . . . . Crushed . | . . . . . . . . . . . . . . . . . Highest Temperature 338 | . 120 79 . 143 197 211 . . 3 192 . . 93 5 338 . Average Temperature 75 | . 55 11 . 67 109 112 . . 3 93 . . 42 5 174 . Received Heat Transfer 2728 | . 87 165 192 693 . . . 42 153 45 22 63 648 234 327 57 Effects 1 | . . . . . . . . . . . . . . . 1 . Energy Bleed 1 | . . . . . . . . . . . . . . . 1 . Siege Activations . | . . . . . . . . . . . . . . . . . Robots Corrupted . | . . . . . . . . . . . . . . . . . Combat Hostiles . | . . . . . . . . . . . . . . . . . Parts Fried 1 | . . . . 1 . . . . . . . . . . . . Impact Corruptions 6 | . . . . 6 . . . . . . . . . . . . Robots Melted . | . . . . . . . . . . . . . . . . . Combat Hostiles . | . . . . . . . . . . . . . . . . . Parts Melted 1 | . . . . . . . . . . 1 . . . . . . Heat Transferred 74 | . 74 . . . . . . . . . . . . . . . Parts Sabotaged . | . . . . . . . . . . . . . . . . . Parts Stolen . | . . . . . . . . . . . . . . . . . Parts Stripped . | . . . . . . . . . . . . . . . . . Power Chain Reactions . | . . . . . . . . . . . . . . . . . Alert | -11 -10 -9 -8 -7 -7 -7 -7 -6 -6 -6 -6 -6 -6 -5 -4 -4 ------- Run | Yrd Mat Mat Mat Fac Low Low Zio Pro Fac Ext Cet Arc Hub Fac Fac Upp Peak Influence 693 | . 232 514 693 534 . . . . 140 547 670 431 482 303 319 . Initial 315 | . . 97 217 315 . . . . 47 . 305 268 150 226 39 . Average 259 | . 91 334 386 367 . . . . 70 173 510 387 327 153 127 . Maximum Alert Level 2 | . 1 2 2 2 . . . . . 2 2 2 2 1 1 . Low Security (%) 39 | . 78 30 . . . . . . 100 67 . . 7 68 78 . Level 1 40 | . 21 28 60 67 . . . . . 19 30 31 70 31 21 . Level 2 20 | . . 41 40 32 . . . . . 13 69 68 21 . . . Level 3 . | . . . . . . . . . . . . . . . . . Level 4 . | . . . . . . . . . . . . . . . . . Level 5 . | . . . . . . . . . . . . . . . . . High Security . | . . . . . . . . . . . . . . . . . Max Security . | . . . . . . . . . . . . . . . . . Squads Dispatched 29 | . 1 3 3 5 . . . . . 4 . . 4 2 7 . Investigation 2 | . . . . . . . . . . 1 . . 1 . . . Extermination 7 | . . . . 2 . . . . . . . . . 2 3 . Reinforcement 14 | . 1 3 3 . . . . . . 3 . . 3 . 1 . Assault . | . . . . . . . . . . . . . . . . . Garrison 6 | . . . . 3 . . . . . . . . . . 3 . Intercept . | . . . . . . . . . . . . . . . . . Searches Triggered . | . . . . . . . . . . . . . . . . . Construction Impeded 3 | . . . 2 . . . . . . 1 . . . . . . Haulers Reinforced . | . . . . . . . . . . . . . . . . . Active Scanning Responses . | . . . . . . . . . . . . . . . . . Cargo Convoy Interrupts . | . . . . . . . . . . . . . . . . . Stealth | -11 -10 -9 -8 -7 -7 -7 -7 -6 -6 -6 -6 -6 -6 -5 -4 -4 --------- Run | Yrd Mat Mat Mat Fac Low Low Zio Pro Fac Ext Cet Arc Hub Fac Fac Upp Distress Signals 19 | . . 2 5 3 . . . . . 5 1 . 3 . . . Communications Jammed 61 | . . . . 10 . . . . . . . . 51 . . . Distress Signals 60 | . . . . 10 . . . . . . . . 50 . . . Times Spotted 247 | . 9 27 27 42 . 1 . 10 4 23 12 5 33 16 27 11 Peak Tracking Total 12 | . 3 6 8 7 . 1 . 4 3 3 5 2 7 3 5 12 Tactical Retreats 14 | . 1 . 3 2 . . . . . 1 . . 1 4 2 . Traps | -11 -10 -9 -8 -7 -7 -7 -7 -6 -6 -6 -6 -6 -6 -5 -4 -4 ------- Run | Yrd Mat Mat Mat Fac Low Low Zio Pro Fac Ext Cet Arc Hub Fac Fac Upp Traps Triggered 7 | . 2 . . 2 . . . . . 1 . . . 2 . . Indirectly . | . . . . . . . . . . . . . . . . . Trap Hack Attempts . | . . . . . . . . . . . . . . . . . Triggered . | . . . . . . . . . . . . . . . . . Disarmed . | . . . . . . . . . . . . . . . . . Reprogrammed 4 | . . . . . . . . . . . . . . . 4 . Reused 1 | . . . . . . . . . . . . . . . 1 . Traps Extracted . | . . . . . . . . . . . . . . . . . Installed . | . . . . . . . . . . . . . . . . . Triggered 1 | . . . . . . . . . . . . . . . 1 . Machines | -11 -10 -9 -8 -7 -7 -7 -7 -6 -6 -6 -6 -6 -6 -5 -4 -4 ---------- Run | Yrd Mat Mat Mat Fac Low Low Zio Pro Fac Ext Cet Arc Hub Fac Fac Upp Machines Disabled 9 | . 1 . 1 1 . . . . . 5 . 1 . . . . Max in Single Turn 1 | . 1 . 1 1 . . . . . 1 . . . . . . Garrison Access 2 | . . . 1 . . . . . . . . . 1 . . . Machines Repaired . | . . . . . . . . . . . . . . . . . Machines Dismantled . | . . . . . . . . . . . . . . . . . Machines Sabotaged . | . . . . . . . . . . . . . . . . . Overloaded Fab Kills . | . . . . . . . . . . . . . . . . . Hacking | -11 -10 -9 -8 -7 -7 -7 -7 -6 -6 -6 -6 -6 -6 -5 -4 -4 --------- Run | Yrd Mat Mat Mat Fac Low Low Zio Pro Fac Ext Cet Arc Hub Fac Fac Upp Machines Accessed 38 | . . 1 2 9 1 1 . . 2 12 . . 4 1 5 . Terminals 29 | . . 1 1 5 . . . . 2 12 . . 3 . 5 . Fabricators 3 | . . . . 3 . . . . . . . . . . . . Repair Stations 1 | . . . . . . . . . . . . . . 1 . . Recycling Units . | . . . . . . . . . . . . . . . . . Scanalyzers . | . . . . . . . . . . . . . . . . . Garrison Access 3 | . . . 1 1 . . . . . . . . 1 . . . Total Hacks 94 | . . 2 3 20 1 1 . . 4 30 . . 10 2 21 . Successful 47 | . . 1 3 9 1 1 . . 2 13 . . 5 2 10 . Failed 47 | . . 1 . 11 . . . . 2 17 . . 5 . 11 . Catastrophic 5 | . . . . 2 . . . . . 3 . . . . . . Database Lockouts . | . . . . . . . . . . . . . . . . . Manual 34 | . . 1 . 8 . . . . 3 9 2 . 5 . 6 . Terminals 78 | . . 2 2 11 . . . . 4 30 . . 8 . 21 . Fabricators 8 | . . . . 8 . . . . . . . . . . . . Repair Stations 2 | . . . . . . . . . . . . . . 2 . . Recycling Units . | . . . . . . . . . . . . . . . . . Scanalyzers . | . . . . . . . . . . . . . . . . . Garrison Access 4 | . . . 1 1 . . . . . . . . 2 . . . Terminal Hacks 31 | . . 1 2 2 1 1 . . 1 12 . . 2 . 9 . Prototype ID Bank 3 | . . . 1 1 . . . . . . . . . . 1 . Open Door 9 | . . . . . 1 1 . . 1 6 . . . . . . Branch Access Points 2 | . . . 1 . . . . . . . . . . . 1 . Alert Level 3 | . . . . . . . . . . 1 . . 1 . 1 . Unreport Threat 1 | . . . . . . . . . . . . . 1 . . . Locate Traps 6 | . . . . 1 . . . . . 3 . . . . 2 . Reprogram Traps 1 | . . . . . . . . . . . . . . . 1 . Recall Reinforcements 1 | . . . . . . . . . . 1 . . . . . . Zone Layout 5 | . . 1 . . . . . . . 1 . . . . 3 . Fabricator Hacks 3 | . . . . 3 . . . . . . . . . . . . Network Status 2 | . . . . 2 . . . . . . . . . . . . Build 1 | . . . . 1 . . . . . . . . . . . . Repair Station Hacks 2 | . . . . . . . . . . . . . . 2 . . Scan Component 1 | . . . . . . . . . . . . . . 1 . . Repair 1 | . . . . . . . . . . . . . . 1 . . Recycling Unit Hacks . | . . . . . . . . . . . . . . . . . Scanalyzer . | . . . . . . . . . . . . . . . . . Garrison Access Hacks 2 | . . . 1 . . . . . . . . . 1 . . . Seal Access 2 | . . . 1 . . . . . . . . . 1 . . . Unauthorized Hacks 9 | . . . . 4 . . . . 1 1 . . 2 . 1 . Terminals 7 | . . . . 2 . . . . 1 1 . . 2 . 1 . Botnet 6 | . . . . 2 . . . . 1 1 . . 1 . 1 . Sabotage 1 | . . . . . . . . . . . . . 1 . . . Fabricators 2 | . . . . 2 . . . . . . . . . . . . Report 1 | . . . . 1 . . . . . . . . . . . . Prioritize 1 | . . . . 1 . . . . . . . . . . . . Repair Stations . | . . . . . . . . . . . . . . . . . Recycling Units . | . . . . . . . . . . . . . . . . . Scanalyzers . | . . . . . . . . . . . . . . . . . Garrison Access . | . . . . . . . . . . . . . . . . . Data Cores Recovered 1 | . . . . 1 . . . . . . . . . . . . Used . | . . . . . . . . . . . . . . . . . Hacking Detections 30 | . . 1 1 9 . . . . 1 10 1 . 2 . 5 . Full Trace Events 1 | . . . . . . . . . . 1 . . . . . . Feedback Events . | . . . . . . . . . . . . . . . . . Feedback Blocked . | . . . . . . . . . . . . . . . . . Robot Schematics Acquired 4 | . . . . . . . 4 . . . . . . . . . Robots Built 3 | . . . . 3 . . . . . . . . . . . . Authchips . | . . . . . . . . . . . . . . . . . Time 134 | . . . . 134 . . . . . . . . . . . . Total Robot Build Rating 12 | . . . . 12 . . . . . . . . . . . . Part Schematics Acquired 13 | . . . . . . . 13 . . . . . . . . . Parts Built . | . . . . . . . . . . . . . . . . . Authchips . | . . . . . . . . . . . . . . . . . Time . | . . . . . . . . . . . . . . . . . Total Part Build Rating . | . . . . . . . . . . . . . . . . . Parts Repaired . | . . . . . . . . . . . . . . . . . Time 38 | . . . . . . . . . . . . . . 38 . . Parts Recycled . | . . . . . . . . . . . . . . . . . Recycled Matter . | . . . . . . . . . . . . . . . . . Retrieved Matter . | . . . . . . . . . . . . . . . . . Retrieved Components . | . . . . . . . . . . . . . . . . . Parts Scanalyzed . | . . . . . . . . . . . . . . . . . Part Schematics Acquired . | . . . . . . . . . . . . . . . . . Parts Damaged . | . . . . . . . . . . . . . . . . . Bothacking | -11 -10 -9 -8 -7 -7 -7 -7 -6 -6 -6 -6 -6 -6 -5 -4 -4 ------------ Run | Yrd Mat Mat Mat Fac Low Low Zio Pro Fac Ext Cet Arc Hub Fac Fac Upp Used RIF Installer . | . . . . . . . . . . . . . . . . . Robots Hacked . | . . . . . . . . . . . . . . . . . Non-combat . | . . . . . . . . . . . . . . . . . Combat . | . . . . . . . . . . . . . . . . . Robot Hacks Applied . | . . . . . . . . . . . . . . . . . Relay Couplers Released 3 | . . . . 3 . . . . . . . . . . . . Programmers 3 | . . . . 3 . . . . . . . . . . . . Fabnet Peak Effective % . | . . . . . . . . . . . . . . . . . Robots Rewired 12 | . . . . . . . . . . 12 . . . . . . Allies Hacked . | . . . . . . . . . . . . . . . . . Hacks Repelled . | . . . . . . . . . . . . . . . . . Allies | -11 -10 -9 -8 -7 -7 -7 -7 -6 -6 -6 -6 -6 -6 -5 -4 -4 -------- Run | Yrd Mat Mat Mat Fac Low Low Zio Pro Fac Ext Cet Arc Hub Fac Fac Upp Total Allies 26 | . . . . 3 . . . . . 21 2 . . . . . Largest Group 10 | . . . . 3 3 3 2 2 . 10 8 5 3 . . . Highest-Rated Group 454 | . . . . 90 90 90 60 60 . 387 454 385 145 . . . Highest-Rated Ally 159 | . . . . 30 30 30 30 30 . 159 159 144 89 . . . Total Orders . | . . . . . . . . . . . . . . . . . Ally Attacks 396 | . . . . 12 . 9 . 4 . 164 78 23 106 . . . Total Damage 9395 | . . . . 365 . 250 . 99 . 3247 1948 613 2873 . . . Kills 65 | . . . . 4 . 1 . 3 . 27 11 3 16 . . . Allies Corrupted . | . . . . . . . . . . . . . . . . . Allies Melted . | . . . . . . . . . . . . . . . . . Intel | -11 -10 -9 -8 -7 -7 -7 -7 -6 -6 -6 -6 -6 -6 -5 -4 -4 ------- Run | Yrd Mat Mat Mat Fac Low Low Zio Pro Fac Ext Cet Arc Hub Fac Fac Upp Robot Analysis Total . | . . . . . . . . . . . . . . . . . Derelict Logs Recovered 6 | . . . . . 1 2 2 1 . . . . . . . . Drone Launches . | . . . . . . . . . . . . . . . . . Drone Recoveries . | . . . . . . . . . . . . . . . . . Exploration | -11 -10 -9 -8 -7 -7 -7 -7 -6 -6 -6 -6 -6 -6 -5 -4 -4 ------------- Run | Yrd Mat Mat Mat Fac Low Low Zio Pro Fac Ext Cet Arc Hub Fac Fac Upp Turns Passed 10155 | . 234 766 655 1735 287 439 621 312 400 969 333 140 763 1276 1113 112 Spaces Moved 6399 | 1 141 362 374 1061 242 363 530 231 274 535 136 80 523 842 633 71 Core . | . . . . . . . . . . . . . . . . . Treads . | . . . . . . . . . . . . . . . . . Legs 4578 | 1 141 362 374 956 . . . . . 459 136 80 523 842 633 71 Wheels 1734 | . . . . 18 242 363 530 231 274 76 . . . . . . Hover 87 | . . . . 87 . . . . . . . . . . . . Flight . | . . . . . . . . . . . . . . . . . Fastest Speed 97 | 120 120 120 105 105 115 115 115 115 115 115 120 120 120 120 97 97 Average Speed 118 | 120 120 142 117 111 115 115 115 115 115 119 120 120 120 120 118 103 Slowest Speed 260 | 120 190 260 120 260 115 115 115 115 115 120 190 120 120 120 120 105 Overloaded Moves . | . . . . . . . . . . . . . . . . . Propulsion Burnouts . | . . . . . . . . . . . . . . . . . Robots Hopped . | . . . . . . . . . . . . . . . . . Cave-ins Triggered 1 | . . . . . . . . . . . . . . . 1 . Exploration Rate (%) 38 | 2 36 30 49 35 43 61 64 41 7 63 49 78 45 21 16 14 Regions Visited 16 Branch Regions 9 Pre-discovered Areas . | . . . . . . . . . . . . . . . . . Known Exits Taken 3 | . . . . . . . . . 1 . . . 1 . 1 . Unknown Exits Taken 13 | 1 1 1 1 1 1 1 1 1 . 1 1 1 . 1 . . Scrap Searched 5 | . . . . . 2 1 2 . . . . . . . . . Spaces Dug 49 | . . . 2 4 . . . . 1 13 . . 6 3 18 2 Terrain Destroyed 144 | . 8 22 38 19 . . . . 1 20 . . 6 3 25 2 Melee 26 | . . . 2 4 . . . . 1 4 . . 4 3 6 2 Projectile 37 | . . . . . . . . . . 16 . . 2 . 19 . AOE 81 | . 8 22 36 15 . . . . . . . . . . . . Terrain Rammed . | . . . . . . . . . . . . . . . . . Walls Destroyed . | . . . . . . . . . . . . . . . . . Machines Disabled . | . . . . . . . . . . . . . . . . . Actions | -11 -10 -9 -8 -7 -7 -7 -7 -6 -6 -6 -6 -6 -6 -5 -4 -4 --------- Run | Yrd Mat Mat Mat Fac Low Low Zio Pro Fac Ext Cet Arc Hub Fac Fac Upp Total 8233 | . 171 545 532 1469 252 380 540 249 325 775 301 112 610 1028 857 87 Wait 850 | . 2 80 70 239 4 . 6 2 19 49 146 13 37 101 82 . Move 6382 | . 140 361 373 1060 241 362 529 230 273 534 135 79 522 841 631 71 Hop . | . . . . . . . . . . . . . . . . . Pick Up 91 | . 2 17 11 20 . 5 1 . 4 7 1 2 6 5 10 . Fast Attach 58 | . 5 4 1 10 1 1 1 . 5 3 4 . 2 12 9 . Attach 64 | . . 5 3 25 . . . 2 . 1 . . 8 5 13 2 Detach 12 | . . 2 1 5 1 . . . . 1 1 . . . 1 . Swap 115 | . 2 17 16 17 2 2 . 2 3 17 5 4 8 8 12 . Drop 117 | . 1 22 15 14 3 7 2 . 5 17 6 6 1 9 9 . Fire 107 | . 19 37 11 4 . . . . . 15 . . 2 . 19 . Melee 352 | . . . 31 75 . 3 1 13 16 47 3 8 24 47 70 14 Ram . | . . . . . . . . . . . . . . . . . Kick . | . . . . . . . . . . . . . . . . . Crush . | . . . . . . . . . . . . . . . . . Escape Stasis 9 | . . . . . . . . . . 8 . . . . 1 . Rewire 76 | . . . . . . . . . . 76 . . . . . . Trap . | . . . . . . . . . . . . . . . . . Miscellaneous . | . . . . . . . . . . . . . . . . . Route ------- -11/Scrapyard -10/Materials (discovered 2 exits: *Mat / [*Min]) -9/Materials -8/Materials -7/Factory -7/Lower Caves -7/Lower Caves (discovered 2 exits: *Fac / [*Zio]) -7/Zion -6/Proximity Caves -6/Factory (discovered 4 exits: Fac / Low / *Ext x2) -6/Extension (discovered 2 exits: *Fac / *Cet) -6/Cetus -6/Archives (discovered 3 exits: *Fac / *Hub x2) -6/Hub_04(d) (discovered 2 exits: *Fac x2) -5/Factory (discovered 3 exits: *Fac x2 / [*Upp]) -4/Factory (discovered 3 exits: *Upp x2 / Arm) -4/Upper Caves History --------- Turn | Location | Event 1 | -11/Scrapyard | Discovered new exit (range 0) 1 | -11/Scrapyard | Entered Materials 107 | -10/Materials | Discovered new exit (range 10) 229 | -10/Materials | Discovered new exit (range 6) 235 | -10/Materials | Entered another Materials area 235 | -9/Materials | Evolved 2 slots: Propulsion x1, Weapon x1 313 | -9/Materials | Build established: Mutant 632 | -9/Materials | Build established: Gunner 736 | -9/Materials | Discovered new exit (range 10) 969 | -9/Materials | Build established: Scavenger-Gunner 1001 | -9/Materials | Entered another Materials area 1001 | -8/Materials | Evolved 2 slots: Propulsion x1, Utility x1 1314 | -8/Materials | Build established: Scavenger-Gladiator 1607 | -8/Materials | Destroyed 8 combat bots 1640 | -8/Materials | Discovered new exit (range 16) 1656 | -8/Materials | Entered Factory 1656 | -7/Factory | Evolved 2 slots: Utility x2 2362 | -7/Factory | Lost 5 parts (2n2u1w) 2909 | -7/Factory | Garrison activated, responded to threat 3194 | -7/Factory | Lost 3 parts (2n1u) 3219 | -7/Factory | Core integrity fell below 50% 3268 | -7/Factory | Discovered new exit (range 11) 3304 | -7/Factory | Fabricated L-41 Fighter (x3) 3345 | -7/Factory | Lost 3 parts (2n1u) 3391 | -7/Factory | Entered Lower Caves 3391 | -7/Lower Caves | Accompanied by 3 allies 3397 | -7/Lower Caves | Build established: Gladiator 3462 | -7/Lower Caves | Learned Factory security intel 3472 | -7/Lower Caves | Encountered a Warlord checkpoint 3668 | -7/Lower Caves | Discovered new exit (range 5) 3678 | -7/Lower Caves | Entered another Lower Caves area 3678 | -7/Lower Caves | Accompanied by 3 allies 3812 | -7/Lower Caves | Discovered new exit (range 9) 4009 | -7/Lower Caves | Learned Factory trap positions 4099 | -7/Lower Caves | Discovered new exit (range 16) 4117 | -7/Lower Caves | Entered Zion 4117 | -7/Zion | Accompanied by 2 allies 4250 | -7/Zion | System corruption cleaned by Quarantine Array 4402 | -7/Zion | Given A8's code to call for help 4428 | -7/Zion | Learned 4 Factory zone layouts 4718 | -7/Zion | Discovered new exit (range 16) 4738 | -7/Zion | Entered Proximity Caves 4738 | -6/Proximity Caves | Accompanied by 2 allies 4834 | -6/Proximity Caves | Learned 12 Factory zone layouts 5035 | -6/Proximity Caves | Discovered new exit (range 13) 5050 | -6/Proximity Caves | Entered Factory 5050 | -6/Factory | Evolved 2 slots: Power x1, Utility x1 5051 | -6/Factory | Identified exit to Lower Caves 5051 | -6/Factory | Identified exit to Extension 5052 | -6/Factory | Identified exit to Factory 5053 | -6/Factory | Loaded intel: 72 trap records 5450 | -6/Factory | Entered Extension 5488 | -6/Extension | Rescued a captive Derelict 5711 | -6/Extension | Build established: Scavenger-Gladiator 6097 | -6/Extension | Rescued a captive Derelict 6129 | -6/Extension | Rescued a captive Derelict 6129 | -6/Extension | Rescued a captive Derelict 6143 | -6/Extension | Rescued a captive Derelict 6143 | -6/Extension | Rescued a captive Derelict 6156 | -6/Extension | Lost 5 allies 6200 | -6/Extension | Rescued a captive Derelict 6231 | -6/Extension | Lost 3 allies 6293 | -6/Extension | Rescued a captive Derelict 6311 | -6/Extension | Lost 3 allies 6341 | -6/Extension | Rescued A7 6378 | -6/Extension | Discovered exit to Factory (range 10) 6379 | -6/Extension | Discovered new exit (range 6) 6419 | -6/Extension | Entered Cetus 6419 | -6/Cetus | Accompanied by 8 allies (A7) 6424 | -6/Cetus | Acquired a Cetus Manufacturing Module code from A7 6436 | -6/Cetus | Spotted Cetus Guard 6436 | -6/Cetus | Spotted Cetus Guard 6438 | -6/Cetus | Spotted Cetus Guard 6439 | -6/Cetus | Spotted Cetus Guard 6443 | -6/Cetus | Allies destroyed Cetus Guard 6451 | -6/Cetus | Allies destroyed Cetus Guard 6452 | -6/Cetus | Allies destroyed Cetus Guard 6458 | -6/Cetus | Allies destroyed Cetus Guard 6480 | -6/Cetus | Lost 3 allies 6511 | -6/Cetus | Enhanced Grunt warped into view, answering call for help 6515 | -6/Cetus | Enhanced Grunt warped into view, answering call for help 6527 | -6/Cetus | Discovered new exit (range 16) 6752 | -6/Cetus | Entered Archives 6752 | -6/Archives | Accompanied by 5 allies (A7) 6798 | -6/Archives | Discovered new exit (range 14) 6813 | -6/Archives | Discovered exit to Factory (range 16) 6857 | -6/Archives | Discovered new exit (range 15) 6892 | -6/Archives | Entered Hub_04(d) 6892 | -6/Hub_04(d) | Accompanied by 3 allies 7281 | -6/Hub_04(d) | Discovered exit to Factory (range 15) 7450 | -6/Hub_04(d) | Discovered exit to Factory (range 7) 7596 | -6/Hub_04(d) | Core integrity fell below 50% 7625 | -6/Hub_04(d) | Lost 4 parts (2p1n1u) 7655 | -6/Hub_04(d) | Entered Factory 7655 | -5/Factory | Evolved 2 slots: Utility x2 7955 | -5/Factory | Discovered new exit (range 13) 8210 | -5/Factory | Lost 5 parts (1p3u1w) 8251 | -5/Factory | Discovered new exit (range 16) 8709 | -5/Factory | Discovered new exit (range 15) 8864 | -5/Factory | Build established: Scavenger-Mutant 8931 | -5/Factory | Entered another Factory area 8931 | -4/Factory | Evolved 2 slots: Utility x2 9076 | -4/Factory | Identified exit to Upper Caves 9076 | -4/Factory | Identified exit to Armory 9441 | -4/Factory | Build established: Scavenger-Gladiator 9456 | -4/Factory | Lost 3 parts (1p1n1w) 9623 | -4/Factory | Crushed by falling debris 9658 | -4/Factory | Lost 3 parts (3u) 9838 | -4/Factory | Garrison activated, responded to threat 9910 | -4/Factory | Lost 4 parts (2n1u1w) 9959 | -4/Factory | Build established: Scavenger-Mutant 10032 | -4/Factory | Lost 3 parts (2p1n) 10044 | -4/Factory | Entered Upper Caves 10074 | -4/Upper Caves | Spotted B-86 Titan 10112 | -4/Upper Caves | Lost 4 parts (1p1n2u) 10156 | -4/Upper Caves | Self-destructed Last Messages --------------- 10075_ Destroyed Antigrav System. 10075_ Mak. Spear follow-up attack on P-70 Sage. 10075_ Destroyed Imp. Remote Datajack. 10078_ P-70 Sage destroyed. 10078_ Penetrated by Slug. 10079_ B-86 Titan activates siege mode. 10081_ Lgt. Antimatter Reactor destroyed. 10081_ Knocked back. 10081_ Imp. VSS Leg destroyed. 10104_ Sneak attack on G3-961(r). 10104_ Destroyed Lgt. Deuterium Engine. 10104_ G3-961(r) destroyed. 10106_ Acquired 10 matter. 10147_ Flexi-carbon Leg destroyed. 10147_ Penetrated by Slug. 10147_ Slug penetrates Wall. 10149_ B-86 Titan activates siege mode. 10150_ Slug penetrates Wall. 10152_ Imp. Utility Shielding destroyed. 10155_ Mic. Fission Core destroyed. Map ----- +----------------------------------------------------+ | ?????????????????????????????????????????????????? | | ?????????????????????????????????????????????????? | | ?????????????????????????????????????????????????? | | ?????????????????????????????????????????????????? | | ?????????????????????????????????????????????????? | | ?????????????????????????????????????????????????? | | ?????????????????????????????????????????????????? | | ?????????????????????????????????????????????????? | | ?????????????????????????????????????????????????? | | ?????????????????????????????????????????????????? | | ??????????????????????????? ?????????????????????? | | ???????????????????????????$#????????????????????? | | ??????????????????????????? #????????????????????? | | ??????????????????????????? ?????????????????????? | | ??????????????????????????? ?????????????????????? | | ???????????????????????????g?????? ??????????????? | | ???????????????????????####g?????? ??????????????? | | ???????????????????????# ????? ???????????????? | | ??????????????????????? ###??? ???????????????? | | ???????????????????????? #?## ???????????????? | | ???????????????????????? # ????????????????? | | ????????????????????????# ? ???????????#????? | | ????????????????????????# ??# #?????????? ##???? | | ????????????????????????# #??# ##???????## #?### | | ????????????????????????# #### #???#### ??# # | | ???????????????????# #@ ;## ##### ???# | | ???????????????????# s % ;"## #???# | | ???????????????????# ##### #????## | | ????????????????? ???#" ####?# | | ?????????????? ????##% = ### | | ?????????????##### #??????## % ## | | ?????????????????# #??#####?#"" ## | | ?????????????????####### ###"##" % | | ???????????????????## ##?## | | ????????????????#### ###" | | ????????????????# ## ### | | ????# ## #### #?## | | ?????????# ########??###??? | | ?????????## ##??????????????? | | ??????????# ## ###???????????????? | | ??????????# #### #### ##?????????????????? | | ???????????????##### ##??####??????????????????? | | ???????????????????#####?????????????????????????? | | ?????????????????????????????????????????????????? | | ?????????????????????????????????????????????????? | | ?????????????????????????????????????????????????? | | ?????????????????????????????????????????????????? | | ?????????????????????????????????????????????????? | | ?????????????????????????????????????????????????? | | ?????????????????????????????????????????????????? | +----------------------------------------------------+ Best States ------------- Heat Dissipation 97 Energy Generation 35 Energy Capacity 540 Matter Stores 300 Matter Capacity 300 Sight Range 16 Robot Scan Range 16 Terrain Scan Density 10 Jamming Range 14 EM Shielding 3 Corruption Containment 12 Armor Coverage 600 Propulsion Shielding 66 Utility Shielding 66 Weapon Shielding 66 Evasion (%) 59 Targeting Accuracy 6 Melee Accuracy 10 Offensive Hacking 24 Defensive Hacking 12 Item Schematics ----------------- Imp. Deuterium Engine | -7/Zion | Archive Matter Compressor | -7/Zion | Archive Xenon Bombardment Thruster | -7/Zion | Archive Imp. Medium Treads | -7/Zion | Archive Mak. Spear | -7/Zion | Archive Power Sword | -7/Zion | Archive Lyr. Heavy Armor Plating | -7/Zion | Archive Lightning Gun | -7/Zion | Archive Remote Shield | -7/Zion | Archive Launcher Guidance Computer | -7/Zion | Archive 0b10 Decoder Chip [Generic] | -7/Zion | Archive Imp. Melee Analysis Suite | -7/Zion | Archive Point Defense System | -7/Zion | Archive Robot Schematics ------------------ R-06 Scavenger | -7/Zion | Archive G-47 Trooper | -7/Zion | Archive Y-54 Guardian | -7/Zion | Archive Y-72 Warden | -7/Zion | Archive Fabricated ------------ L-41 Fighter | x3 | -7/Factory | Preloaded Alien Tech Used ----------------- None Achievements -------------- None Challenges ------------ None Game ------ Seed ExoskeletonAluminumStorm Manual? 0 Play Time 01:29:53 Cumulative 230.1 hours Start 2024.03.07 @ 23:06:46 End 2024.03.08 @ 00:41:25 Sessions 1 Manual Loads 0 Difficulty Rogue Special Mode None Game No. 140 Rogue 140 Adventurer 0 Explorer 0 Win Type - Total 2 Types 2/0/0/0/0/0/0/0/0 Lore% 49 Gallery% 69 Achievement% 57 Wizard Run 0 Options --------- Layout 1 ASCII 0 Keyboard 1 Movement Numpad Keybinds 0 Fullscreen 1 Font 32/SmallcapsGlow Map View 50x35 Zoom Use 0% Tactical HUD 1 Map Filters NONE Filters NONE Steam 1 RUN: da2a9866-e071-4763-86f0-1eb1620911f5